[Event "Titled Tuesday Blitz February 15 Late 2022"]
[White "Abdrlauf, Elham"]
[Black "Remizov, Yaroslav"]
[WhiteFideId "1533533"]
[BlackFideId "34134015"]
[WhiteElo "2334"]
[BlackElo "2360"]
[Result "1-0"]
[Round "06"]
[TimeControl "180+1"]
[Date "2022.02.15"]
[WhiteClock "0:00:21"]
[BlackClock "0:00:04"]

1. e4 {[%clk 0:02:58]}  e6 {[%clk 0:03:00]} 2. d4 {[%clk 0:02:58]}  a6 {[%clk 0:03:00]} 3. Nc3 {[%clk 0:02:55]}  c5 {[%clk 0:03:00]} 4. d5 {[%clk 0:02:55]}  d6 {[%clk 0:02:58]} 5. a4 {[%clk 0:02:54]}  exd5 {[%clk 0:02:57]} 6. exd5 {[%clk 0:02:55]}  g6 {[%clk 0:02:57]} 7. Nf3 {[%clk 0:02:47]}  Bg7 {[%clk 0:02:56]} 8. Be2 {[%clk 0:02:44]}  Ne7 {[%clk 0:02:51]} 9. O-O {[%clk 0:02:44]}  O-O {[%clk 0:02:51]} 10. Re1 {[%clk 0:02:31]}  Bg4 {[%clk 0:02:40]} 11. h3 {[%clk 0:02:31]}  Bxf3 {[%clk 0:02:40]} 12. Bxf3 {[%clk 0:02:32]}  Nf5 {[%clk 0:02:40]} 13. Ne4 {[%clk 0:02:25]}  Nd7 {[%clk 0:01:54]} 14. Bg4 {[%clk 0:02:21]}  Nd4 {[%clk 0:01:51]} 15. c3 {[%clk 0:01:54]}  f5 {[%clk 0:01:47]} 16. cxd4 {[%clk 0:01:29]}  Bxd4 {[%clk 0:01:20]} 17. Be3 {[%clk 0:01:10]}  Bxe3 {[%clk 0:01:14]} 18. Rxe3 {[%clk 0:01:11]}  fxe4 {[%clk 0:01:00]} 19. Rxe4 {[%clk 0:01:08]}  Nf6 {[%clk 0:00:54]} 20. Re1 {[%clk 0:00:57]}  Nxg4 {[%clk 0:00:45]} 21. Qxg4 {[%clk 0:00:58]}  Qf6 {[%clk 0:00:46]} 22. Qe6+ {[%clk 0:00:57]}  Qxe6 {[%clk 0:00:45]} 23. Rxe6 {[%clk 0:00:57]}  Rae8 {[%clk 0:00:39]} 24. Rae1 {[%clk 0:00:49]}  Kf7 {[%clk 0:00:38]} 25. R1e3 {[%clk 0:00:46]}  Rxe6 {[%clk 0:00:37]} 26. Rxe6 {[%clk 0:00:47]}  Rd8 {[%clk 0:00:36]} 27. a5 {[%clk 0:00:46]}  Rd7 {[%clk 0:00:28]} 28. b3 {[%clk 0:00:39]}  Kg7 {[%clk 0:00:25]} 29. g4 {[%clk 0:00:37]}  Kf8 {[%clk 0:00:23]} 30. Kg2 {[%clk 0:00:37]}  Kg7 {[%clk 0:00:22]} 31. Kg3 {[%clk 0:00:38]}  g5 {[%clk 0:00:15]} 32. f4 {[%clk 0:00:30]}  gxf4+ {[%clk 0:00:15]} 33. Kxf4 {[%clk 0:00:31]}  Rf7+ {[%clk 0:00:15]} 34. Kg3 {[%clk 0:00:29]}  Rf6 {[%clk 0:00:15]} 35. Rxf6 {[%clk 0:00:23]}  Kxf6 {[%clk 0:00:15]} 36. Kf4 {[%clk 0:00:24]}  Kg6 {[%clk 0:00:04]} 37. h4 {[%clk 0:00:22]}  h6 {[%clk 0:00:02]} 38. g5 {[%clk 0:00:22]}  h5 {[%clk 0:00:03]} 39. Ke4 {[%clk 0:00:23]}  Kg7 {[%clk 0:00:02]} 40. Kf5 {[%clk 0:00:24]}  Kh7 {[%clk 0:00:02]} 41. Kf6 {[%clk 0:00:21]}  Kg8 {[%clk 0:00:02]} 42. Ke7 {[%clk 0:00:21]}  Kg7 {[%clk 0:00:02]} 43. Kxd6 {[%clk 0:00:21]}  c4 {[%clk 0:00:03]} 44. bxc4 {[%clk 0:00:22]}  b5 {[%clk 0:00:04]} 45. axb6 {[%clk 0:00:21]} 1-0


[Site "https://www.chess.com"]

[Event "Titled Tuesday Blitz February 15 Late 2022"]
[White "Abdyzhapar, Asylbek"]
[Black "Dronavalli, Harika"]
[WhiteFideId "13800337"]
[BlackFideId "5015197"]
[WhiteElo "2331"]
[BlackElo "2382"]
[Result "1/2-1/2"]
[Round "06"]
[TimeControl "180+1"]
[Date "2022.02.16"]
[WhiteClock "0:00:17"]
[BlackClock "0:00:09"]

1. c4 {[%clk 0:03:00]}  e6 {[%clk 0:02:58]} 2. g3 {[%clk 0:03:01]}  d5 {[%clk 0:02:58]} 3. Bg2 {[%clk 0:03:01]}  Nf6 {[%clk 0:02:58]} 4. Nf3 {[%clk 0:03:02]}  c6 {[%clk 0:02:55]} 5. O-O {[%clk 0:03:02]}  Nbd7 {[%clk 0:02:50]} 6. b3 {[%clk 0:03:01]}  Bd6 {[%clk 0:02:48]} 7. Bb2 {[%clk 0:03:01]}  O-O {[%clk 0:02:47]} 8. d3 {[%clk 0:03:00]}  Qe7 {[%clk 0:02:48]} 9. Nc3 {[%clk 0:02:56]}  b6 {[%clk 0:02:41]} 10. Rc1 {[%clk 0:02:46]}  Bb7 {[%clk 0:02:40]} 11. e3 {[%clk 0:02:44]}  Rac8 {[%clk 0:02:36]} 12. Qe2 {[%clk 0:02:42]}  Rfe8 {[%clk 0:02:27]} 13. e4 {[%clk 0:02:39]}  dxe4 {[%clk 0:02:26]} 14. dxe4 {[%clk 0:02:39]}  e5 {[%clk 0:02:21]} 15. Rcd1 {[%clk 0:02:39]}  Nc5 {[%clk 0:02:14]} 16. b4 {[%clk 0:02:34]}  Ne6 {[%clk 0:02:13]} 17. a3 {[%clk 0:02:34]}  Rcd8 {[%clk 0:02:12]} 18. Rd2 {[%clk 0:02:31]}  Bb8 {[%clk 0:02:03]} 19. Rfd1 {[%clk 0:02:31]}  Rxd2 {[%clk 0:01:58]} 20. Rxd2 {[%clk 0:02:30]}  Rd8 {[%clk 0:01:58]} 21. Rxd8+ {[%clk 0:02:30]}  Qxd8 {[%clk 0:01:58]} 22. b5 {[%clk 0:02:23]}  cxb5 {[%clk 0:01:53]} 23. cxb5 {[%clk 0:02:21]}  h6 {[%clk 0:01:29]} 24. h3 {[%clk 0:02:21]}  Bd6 {[%clk 0:01:09]} 25. Qc4 {[%clk 0:02:20]}  Qc7 {[%clk 0:01:07]} 26. Qxc7 {[%clk 0:02:10]}  Nxc7 {[%clk 0:01:06]} 27. Nd2 {[%clk 0:02:10]}  Bc5 {[%clk 0:01:05]} 28. Nc4 {[%clk 0:02:09]}  Bd4 {[%clk 0:01:06]} 29. Nd6 {[%clk 0:02:04]}  Ba8 {[%clk 0:01:02]} 30. Na4 {[%clk 0:01:53]}  Nfe8 {[%clk 0:00:48]} 31. Bxd4 {[%clk 0:01:43]}  exd4 {[%clk 0:00:47]} 32. Nxe8 {[%clk 0:01:19]}  Nxe8 {[%clk 0:00:46]} 33. Nb2 {[%clk 0:01:19]}  Nc7 {[%clk 0:00:45]} 34. a4 {[%clk 0:01:18]}  Ne6 {[%clk 0:00:43]} 35. Kf1 {[%clk 0:01:18]}  Nc5 {[%clk 0:00:42]} 36. f3 {[%clk 0:01:18]}  Kf8 {[%clk 0:00:39]} 37. Ke2 {[%clk 0:01:18]}  Bb7 {[%clk 0:00:39]} 38. Kd2 {[%clk 0:01:18]}  Bc8 {[%clk 0:00:38]} 39. e5 {[%clk 0:01:09]}  Bb7 {[%clk 0:00:37]} 40. h4 {[%clk 0:01:06]}  Bd5 {[%clk 0:00:36]} 41. Nd3 {[%clk 0:00:49]}  Nxa4 {[%clk 0:00:34]} 42. Nb4 {[%clk 0:00:50]}  Bc4 {[%clk 0:00:33]} 43. Nc6 {[%clk 0:00:49]}  Bxb5 {[%clk 0:00:32]} 44. Nxa7 {[%clk 0:00:50]}  Bd7 {[%clk 0:00:31]} 45. Kd3 {[%clk 0:00:47]}  Nc5+ {[%clk 0:00:20]} 46. Kxd4 {[%clk 0:00:47]}  Ke7 {[%clk 0:00:19]} 47. f4 {[%clk 0:00:48]}  Ne6+ {[%clk 0:00:19]} 48. Kc4 {[%clk 0:00:45]}  Nd8 {[%clk 0:00:12]} 49. Be4 {[%clk 0:00:42]}  f6 {[%clk 0:00:10]} 50. exf6+ {[%clk 0:00:38]}  Kxf6 {[%clk 0:00:09]} 51. Kd5 {[%clk 0:00:35]}  Ke7 {[%clk 0:00:07]} 52. f5 {[%clk 0:00:30]}  Nf7 {[%clk 0:00:07]} 53. g4 {[%clk 0:00:28]}  h5 {[%clk 0:00:07]} 54. g5 {[%clk 0:00:26]}  Nd8 {[%clk 0:00:07]} 55. Bd3 {[%clk 0:00:21]}  Nf7 {[%clk 0:00:07]} 56. Nb5 {[%clk 0:00:18]}  Bxb5 {[%clk 0:00:07]} 57. Bxb5 {[%clk 0:00:18]}  Nd8 {[%clk 0:00:07]} 58. Bc4 {[%clk 0:00:18]}  Nb7 {[%clk 0:00:07]} 59. Ke5 {[%clk 0:00:18]}  Nc5 {[%clk 0:00:06]} 60. Be2 {[%clk 0:00:18]}  Nd7+ {[%clk 0:00:06]} 61. Kd5 {[%clk 0:00:18]}  Kf8 {[%clk 0:00:04]} 62. Bxh5 {[%clk 0:00:18]}  Nc5 {[%clk 0:00:04]} 63. Be2 {[%clk 0:00:18]}  Nb3 {[%clk 0:00:04]} 64. Bc4 {[%clk 0:00:17]}  Nd2 {[%clk 0:00:04]} 65. Bb3 {[%clk 0:00:17]}  Nf3 {[%clk 0:00:04]} 66. Ke6 {[%clk 0:00:17]}  Nxh4 {[%clk 0:00:05]} 67. g6 {[%clk 0:00:17]}  b5 {[%clk 0:00:05]} 68. Bd5 {[%clk 0:00:16]}  b4 {[%clk 0:00:05]} 69. Bb3 {[%clk 0:00:17]}  Nf3 {[%clk 0:00:05]} 70. f6 {[%clk 0:00:17]}  Nd4+ {[%clk 0:00:05]} 71. Kd5 {[%clk 0:00:15]}  Nxb3 {[%clk 0:00:05]} 72. fxg7+ {[%clk 0:00:15]}  Kxg7 {[%clk 0:00:06]} 73. Kc4 {[%clk 0:00:16]}  Nd2+ {[%clk 0:00:07]} 74. Kxb4 {[%clk 0:00:16]}  Nf3 {[%clk 0:00:08]} 75. Kc3 {[%clk 0:00:16]}  Nh4 {[%clk 0:00:08]} 76. Kb2 {[%clk 0:00:17]}  Nxg6 {[%clk 0:00:09]} 1/2-1/2


[Site "https://www.chess.com"]

[Event "Titled Tuesday Blitz February 15 Late 2022"]
[White "Andreikin, Dmitry"]
[Black "Jones, Gawain C B"]
[WhiteFideId "4158814"]
[BlackFideId "409561"]
[WhiteElo "2736"]
[BlackElo "2657"]
[Result "1/2-1/2"]
[Round "06"]
[TimeControl "180+1"]
[Date "2022.02.15"]
[WhiteClock "0:00:19"]
[BlackClock "0:00:08"]

1. Nc3 {[%clk 0:03:00]}  d5 {[%clk 0:02:57]} 2. e4 {[%clk 0:03:01]}  dxe4 {[%clk 0:02:57]} 3. Nxe4 {[%clk 0:03:01]}  Nf6 {[%clk 0:02:56]} 4. Nxf6+ {[%clk 0:02:57]}  exf6 {[%clk 0:02:56]} 5. Bc4 {[%clk 0:02:53]}  Bd6 {[%clk 0:02:55]} 6. Qe2+ {[%clk 0:02:53]}  Be7 {[%clk 0:02:55]} 7. Nf3 {[%clk 0:02:51]}  O-O {[%clk 0:02:55]} 8. O-O {[%clk 0:02:51]}  Nc6 {[%clk 0:02:49]} 9. c3 {[%clk 0:02:43]}  Bd6 {[%clk 0:02:35]} 10. d4 {[%clk 0:02:42]}  Bg4 {[%clk 0:02:27]} 11. h3 {[%clk 0:02:27]}  Bh5 {[%clk 0:02:26]} 12. Qd3 {[%clk 0:02:21]}  Bg6 {[%clk 0:02:23]} 13. Qd1 {[%clk 0:02:21]}  Bh5 {[%clk 0:02:20]} 14. g4 {[%clk 0:02:09]}  Bg6 {[%clk 0:02:19]} 15. Nh4 {[%clk 0:02:08]}  Re8 {[%clk 0:01:50]} 16. Nxg6 {[%clk 0:02:01]}  hxg6 {[%clk 0:01:50]} 17. Qf3 {[%clk 0:02:01]}  Qd7 {[%clk 0:01:40]} 18. Be3 {[%clk 0:01:53]}  Re7 {[%clk 0:01:37]} 19. Rae1 {[%clk 0:01:52]}  Rae8 {[%clk 0:01:36]} 20. Bd2 {[%clk 0:01:49]}  Nd8 {[%clk 0:01:30]} 21. Rxe7 {[%clk 0:01:47]}  Rxe7 {[%clk 0:01:30]} 22. Re1 {[%clk 0:01:48]}  Rxe1+ {[%clk 0:01:30]} 23. Bxe1 {[%clk 0:01:49]}  c6 {[%clk 0:01:18]} 24. Bd2 {[%clk 0:01:45]}  Ne6 {[%clk 0:01:11]} 25. Qe4 {[%clk 0:01:44]}  Kf8 {[%clk 0:00:55]} 26. h4 {[%clk 0:01:26]}  Nf4 {[%clk 0:00:48]} 27. Qf3 {[%clk 0:01:18]}  g5 {[%clk 0:00:46]} 28. b4 {[%clk 0:01:02]}  f5 {[%clk 0:00:41]} 29. Bxf4 {[%clk 0:00:55]}  Bxf4 {[%clk 0:00:32]} 30. hxg5 {[%clk 0:00:54]}  Bxg5 {[%clk 0:00:31]} 31. gxf5 {[%clk 0:00:54]}  Qd6 {[%clk 0:00:26]} 32. Qh5 {[%clk 0:00:50]}  Qf6 {[%clk 0:00:26]} 33. Bxf7 {[%clk 0:00:47]}  Bd2 {[%clk 0:00:19]} 34. Be6 {[%clk 0:00:26]}  Qg5+ {[%clk 0:00:15]} 35. Qxg5 {[%clk 0:00:25]}  Bxg5 {[%clk 0:00:16]} 36. c4 {[%clk 0:00:18]}  Bd2 {[%clk 0:00:10]} 37. a3 {[%clk 0:00:18]}  Ke7 {[%clk 0:00:09]} 38. c5 {[%clk 0:00:16]}  Bc1 {[%clk 0:00:07]} 39. a4 {[%clk 0:00:15]}  Bb2 {[%clk 0:00:04]} 40. d5 {[%clk 0:00:15]}  cxd5 {[%clk 0:00:04]} 41. Bxd5 {[%clk 0:00:16]}  Ba3 {[%clk 0:00:05]} 42. Bxb7 {[%clk 0:00:13]}  Bxb4 {[%clk 0:00:05]} 43. c6 {[%clk 0:00:13]}  Ba5 {[%clk 0:00:05]} 44. Kg2 {[%clk 0:00:08]}  Kd6 {[%clk 0:00:05]} 45. Kf3 {[%clk 0:00:08]}  Bc3 {[%clk 0:00:05]} 46. Kg4 {[%clk 0:00:07]}  Kc7 {[%clk 0:00:04]} 47. Kg5 {[%clk 0:00:07]}  Bf6+ {[%clk 0:00:04]} 48. Kg6 {[%clk 0:00:07]}  Bd4 {[%clk 0:00:05]} 49. Kf7 {[%clk 0:00:08]}  Bf6 {[%clk 0:00:05]} 50. Ke6 {[%clk 0:00:08]}  Bd4 {[%clk 0:00:05]} 51. Kd5 {[%clk 0:00:09]}  Bf6 {[%clk 0:00:05]} 52. Kc5 {[%clk 0:00:10]}  Bc3 {[%clk 0:00:06]} 53. Kb5 {[%clk 0:00:10]}  Bf6 {[%clk 0:00:05]} 54. Ka6 {[%clk 0:00:10]}  Bd4 {[%clk 0:00:06]} 55. Ka5 {[%clk 0:00:10]}  Bxf2 {[%clk 0:00:04]} 56. Kb5 {[%clk 0:00:09]}  Bd4 {[%clk 0:00:04]} 57. Kc4 {[%clk 0:00:10]}  Bf6 {[%clk 0:00:04]} 58. Kd5 {[%clk 0:00:10]}  Ba1 {[%clk 0:00:04]} 59. Ba6 {[%clk 0:00:11]}  Bb2 {[%clk 0:00:04]} 60. Bb5 {[%clk 0:00:11]}  Ba1 {[%clk 0:00:05]} 61. Ke6 {[%clk 0:00:12]}  Bb2 {[%clk 0:00:05]} 62. Kd5 {[%clk 0:00:12]}  Ba1 {[%clk 0:00:05]} 63. Bc4 {[%clk 0:00:13]}  Bb2 {[%clk 0:00:05]} 64. Kc5 {[%clk 0:00:13]}  Bf6 {[%clk 0:00:05]} 65. Bd5 {[%clk 0:00:14]}  Bb2 {[%clk 0:00:05]} 66. Kb5 {[%clk 0:00:15]}  Bc3 {[%clk 0:00:05]} 67. a5 {[%clk 0:00:15]}  Be5 {[%clk 0:00:05]} 68. Ka6 {[%clk 0:00:15]}  Bd4 {[%clk 0:00:05]} 69. Kb5 {[%clk 0:00:15]}  Bc3 {[%clk 0:00:05]} 70. Bf3 {[%clk 0:00:16]}  Bd4 {[%clk 0:00:05]} 71. a6 {[%clk 0:00:16]}  Bc3 {[%clk 0:00:06]} 72. Be4 {[%clk 0:00:17]}  Bf6 {[%clk 0:00:06]} 73. Bf3 {[%clk 0:00:17]}  Be5 {[%clk 0:00:07]} 74. Be4 {[%clk 0:00:18]}  Bf6 {[%clk 0:00:07]} 75. Bf3 {[%clk 0:00:18]}  Be5 {[%clk 0:00:07]} 76. Be4 {[%clk 0:00:19]}  Bf6 {[%clk 0:00:08]} 1/2-1/2


[Site "https://www.chess.com"]

[Event "Titled Tuesday Blitz February 15 Late 2022"]
[White "Ankerst, Mihael"]
[Black "KND2020"]
[WhiteFideId "14602369"]
[WhiteElo "2297"]
[BlackElo "2512"]
[Result "0-1"]
[Round "06"]
[TimeControl "180+1"]
[Date "2022.02.16"]
[WhiteClock "0:00:07"]
[BlackClock "0:00:17"]

1. e4 {[%clk 0:02:55]}  c5 {[%clk 0:03:00]} 2. Nf3 {[%clk 0:02:54]}  a6 {[%clk 0:02:58]} 3. d4 {[%clk 0:02:55]}  cxd4 {[%clk 0:02:58]} 4. Nxd4 {[%clk 0:02:56]}  Nf6 {[%clk 0:02:58]} 5. Nc3 {[%clk 0:02:56]}  e5 {[%clk 0:02:58]} 6. Nf3 {[%clk 0:02:57]}  Nc6 {[%clk 0:02:58]} 7. Bc4 {[%clk 0:02:57]}  Bb4 {[%clk 0:02:55]} 8. O-O {[%clk 0:02:58]}  h6 {[%clk 0:02:53]} 9. Nd5 {[%clk 0:02:56]}  Bc5 {[%clk 0:02:51]} 10. Be3 {[%clk 0:02:42]}  d6 {[%clk 0:02:47]} 11. Bxc5 {[%clk 0:02:27]}  dxc5 {[%clk 0:02:48]} 12. Re1 {[%clk 0:02:07]}  O-O {[%clk 0:02:47]} 13. h3 {[%clk 0:02:02]}  Rb8 {[%clk 0:02:36]} 14. c3 {[%clk 0:01:59]}  b5 {[%clk 0:02:31]} 15. Nxf6+ {[%clk 0:01:59]}  Qxf6 {[%clk 0:02:32]} 16. Bd5 {[%clk 0:02:00]}  Ne7 {[%clk 0:02:30]} 17. a4 {[%clk 0:01:55]}  Ng6 {[%clk 0:02:25]} 18. axb5 {[%clk 0:01:51]}  axb5 {[%clk 0:02:26]} 19. Nd2 {[%clk 0:01:13]}  Nf4 {[%clk 0:02:21]} 20. Nf1 {[%clk 0:01:14]}  h5 {[%clk 0:01:54]} 21. Ra7 {[%clk 0:01:08]}  Qg5 {[%clk 0:01:47]} 22. Ne3 {[%clk 0:00:31]}  Nxh3+ {[%clk 0:01:41]} 23. Kf1 {[%clk 0:00:29]}  Nf4 {[%clk 0:01:38]} 24. Qf3 {[%clk 0:00:23]}  h4 {[%clk 0:01:35]} 25. Rea1 {[%clk 0:00:19]}  Be6 {[%clk 0:01:18]} 26. Rc7 {[%clk 0:00:12]}  Rbc8 {[%clk 0:01:07]} 27. Rb7 {[%clk 0:00:09]}  b4 {[%clk 0:01:05]} 28. cxb4 {[%clk 0:00:07]}  cxb4 {[%clk 0:01:06]} 29. Rxb4 {[%clk 0:00:06]}  Rfd8 {[%clk 0:00:55]} 30. Bxe6 {[%clk 0:00:05]}  fxe6 {[%clk 0:00:56]} 31. Rba4 {[%clk 0:00:05]}  Rf8 {[%clk 0:00:53]} 32. Kg1 {[%clk 0:00:05]}  Nd3 {[%clk 0:00:49]} 33. Qg4 {[%clk 0:00:04]}  Qf6 {[%clk 0:00:43]} 34. Ra6 {[%clk 0:00:03]}  Nxf2 {[%clk 0:00:42]} 35. Qxe6+ {[%clk 0:00:02]}  Qxe6 {[%clk 0:00:40]} 36. Rxe6 {[%clk 0:00:03]}  Nxe4 {[%clk 0:00:40]} 37. Rxe5 {[%clk 0:00:02]}  Ng3 {[%clk 0:00:39]} 38. Rg5 {[%clk 0:00:02]}  Rce8 {[%clk 0:00:37]} 39. Ra7 {[%clk 0:00:01]}  Rf7 {[%clk 0:00:34]} 40. Rxf7 {[%clk 0:00:01]}  Kxf7 {[%clk 0:00:35]} 41. Ng4 {[%clk 0:00:01]}  Re1+ {[%clk 0:00:31]} 42. Kf2 {[%clk 0:00:02]}  Re2+ {[%clk 0:00:27]} 43. Kf3 {[%clk 0:00:03]}  Rxb2 {[%clk 0:00:27]} 44. Ne3 {[%clk 0:00:03]}  Rb3 {[%clk 0:00:21]} 45. Rg4 {[%clk 0:00:03]}  Nf1 {[%clk 0:00:19]} 46. Rf4+ {[%clk 0:00:02]}  Ke6 {[%clk 0:00:18]} 47. Rxh4 {[%clk 0:00:03]}  Nxe3 {[%clk 0:00:17]} 48. Ke4 {[%clk 0:00:03]}  Nf5 {[%clk 0:00:16]} 49. Rh1 {[%clk 0:00:01]}  Ng3+ {[%clk 0:00:16]} 50. Kf4 {[%clk 0:00:02]}  Nxh1 {[%clk 0:00:17]} 51. Kg5 {[%clk 0:00:02]}  Rg3+ {[%clk 0:00:17]} 52. Kh4 {[%clk 0:00:02]}  Rxg2 {[%clk 0:00:17]} 53. Kh3 {[%clk 0:00:03]}  Rg3+ {[%clk 0:00:17]} 54. Kh2 {[%clk 0:00:04]}  Rg5 {[%clk 0:00:16]} 55. Kxh1 {[%clk 0:00:05]}  Kf5 {[%clk 0:00:17]} 56. Kh2 {[%clk 0:00:06]}  Kf4 {[%clk 0:00:18]} 57. Kh3 {[%clk 0:00:06]}  Rg4 {[%clk 0:00:16]} 58. Kh2 {[%clk 0:00:06]}  Kf3 {[%clk 0:00:17]} 59. Kh3 {[%clk 0:00:07]}  Rf4 {[%clk 0:00:15]} 60. Kh2 {[%clk 0:00:07]}  Rh4+ {[%clk 0:00:15]} 61. Kg1 {[%clk 0:00:07]}  Rh5 {[%clk 0:00:16]} 62. Kf1 {[%clk 0:00:07]}  Rh1# {[%clk 0:00:17]} 0-1


[Site "https://www.chess.com"]

[Event "Titled Tuesday Blitz February 15 Late 2022"]
[White "Antolak, Julia"]
[Black "Chabris, Christopher"]
[WhiteFideId "1159569"]
[BlackFideId "2005263"]
[WhiteElo "2104"]
[BlackElo "2320"]
[Result "1-0"]
[Round "06"]
[TimeControl "180+1"]
[Date "2022.02.16"]
[WhiteClock "0:01:33"]
[BlackClock "0:00:04"]

1. e4 {[%clk 0:03:00]}  c5 {[%clk 0:02:59]} 2. Nf3 {[%clk 0:03:00]}  d6 {[%clk 0:02:59]} 3. d4 {[%clk 0:03:00]}  cxd4 {[%clk 0:03:00]} 4. Nxd4 {[%clk 0:03:01]}  Nf6 {[%clk 0:03:00]} 5. Nc3 {[%clk 0:02:58]}  a6 {[%clk 0:03:00]} 6. Nb3 {[%clk 0:02:58]}  g6 {[%clk 0:02:52]} 7. h4 {[%clk 0:02:55]}  Bg7 {[%clk 0:02:51]} 8. Be2 {[%clk 0:02:53]}  h5 {[%clk 0:02:45]} 9. Bg5 {[%clk 0:02:49]}  Nc6 {[%clk 0:02:34]} 10. Qd2 {[%clk 0:02:48]}  Be6 {[%clk 0:02:30]} 11. O-O-O {[%clk 0:02:45]}  b5 {[%clk 0:02:26]} 12. Kb1 {[%clk 0:02:45]}  Rc8 {[%clk 0:02:10]} 13. f3 {[%clk 0:02:44]}  Ne5 {[%clk 0:02:09]} 14. Nd4 {[%clk 0:02:40]}  Bc4 {[%clk 0:01:58]} 15. Rhe1 {[%clk 0:02:34]}  Bxe2 {[%clk 0:01:40]} 16. Qxe2 {[%clk 0:02:35]}  Rxc3 {[%clk 0:01:33]} 17. bxc3 {[%clk 0:02:35]}  Qa5 {[%clk 0:01:26]} 18. Nb3 {[%clk 0:02:10]}  Qxc3 {[%clk 0:01:20]} 19. Qe3 {[%clk 0:02:10]}  Nd5 {[%clk 0:00:58]} 20. exd5 {[%clk 0:01:56]}  Qxe3 {[%clk 0:00:12]} 21. Rxe3 {[%clk 0:01:53]}  Nc4 {[%clk 0:00:12]} 22. Rxe7+ {[%clk 0:01:53]}  Kf8 {[%clk 0:00:12]} 23. Rde1 {[%clk 0:01:52]}  Bc3 {[%clk 0:00:06]} 24. Re8+ {[%clk 0:01:39]}  Kg7 {[%clk 0:00:07]} 25. Rxh8 {[%clk 0:01:40]}  Bxe1 {[%clk 0:00:04]} 26. Rc8 {[%clk 0:01:33]} 1-0


[Site "https://www.chess.com"]